bitfinex/quotes_SOLUSD_20240718
["timestamp","ask_amount","ask_price","bid_price","bid_amount"]
[1721278103287,1.58428281,157.84,157.79,6.3372]
[1721278103499,49.4,157.84,157.8,45.4662893]
[1721278103685,12.35,157.81,157.8,51.8033893]
[1721278104773,12.35,157.81,157.8,51.3371]
[1721278105187,12.35,157.81,157.8,51.80356464]
[1721278106001,6.3347,157.86,157.81,6.3367]
[1721278106177,21.3475,157.87,157.82,51.80205587]
[1721278106383,21.3475,157.87,157.83,45.46564633]
[1721278106598,12.35,157.84,157.83,45.46564633]
[1721278106771,12.35,157.84,157.83,45.0]
[1721278107174,12.35,157.84,157.82,45.0]
[1721278107480,12.35,157.83,157.82,45.0]
[1721278109727,18.6859,157.83,157.79,15.8429]
[1721278110297,18.6859,157.83,157.74,10.0]
[1721278110298,12.35,157.8,157.75,15.8471]
[1721278110479,12.35,157.78,157.75,15.8471]
[1721278110804,12.35,157.77,157.76,6.3387]
[1721278111300,12.35,157.77,157.75,15.8471]
[1721278111476,12.35,157.77,157.72,10.0]
[1721278111477,12.35,157.76,157.72,25.8507]
[1721278111676,12.35,157.74,157.73,6.3399]
[1721278112197,12.35,157.74,157.72,25.8507]
[1721278112510,1.58461055,157.79,157.74,6.3395]
[1721278112709,12.35,157.75,157.74,6.3395]
[1721278113278,12.35,157.75,157.74,51.3395]
[1721278115804,12.35,157.75,157.74,45.0]
[1721278116590,12.35,157.75,157.73,45.0]
[1721278116794,12.35,157.74,157.73,51.3399]
[1721278117202,12.35,157.74,157.72,22.191]
[1721278117689,12.35,157.74,157.73,6.80830253]
[1721278118322,12.35,157.74,157.72,15.8507]
[1721278118513,12.35,157.74,157.73,45.0]
[1721278118689,12.35,157.74,157.73,51.3399]
[1721278121113,12.35,157.74,157.73,45.0]
[1721278121527,12.35,157.74,157.73,51.3399]
[1721278126219,12.35,157.74,157.73,51.80802837]
[1721278126422,12.35,157.74,157.73,51.3399]
[1721278129912,12.35,157.74,157.73,45.0]
[1721278130434,6.3379,157.78,157.73,51.8083072]
[1721278130601,12.35,157.74,157.73,51.3399]
[1721278132322,12.35,157.74,157.73,45.0]
[1721278133021,12.35,157.74,157.73,51.3399]
[1721278133330,6.338,157.78,157.73,51.3399]
[1721278133530,12.35,157.74,157.73,51.3399]
[1721278134039,6.338,157.78,157.73,51.3399]
[1721278134229,12.35,157.74,157.73,51.3399]
[1721278134726,12.35,157.74,157.73,45.0]
[1721278138209,18.6895,157.74,157.73,45.0]
[1721278138415,12.35,157.74,157.7,0.822604]
[1721278138611,20.27448395,157.74,157.7,0.822604]
[1721278138820,12.35,157.71,157.7,0.822604]
[1721278140124,12.35,157.71,157.7,45.822604]
[1721278141219,12.35,157.71,157.7,0.822604]
[1721278143718,1.5851812,157.73,157.7,0.822604]
[1721278143912,12.35,157.71,157.7,0.822604]
[1721278146043,7.9250812,157.73,157.7,0.822604]
[1721278146244,12.35,157.71,157.7,0.822604]
[1721278147652,24.35895032,157.75,157.7,1.29184078]
[1721278147828,22.1036,157.78,157.7,1.29184078]
[1721278147829,49.4,157.76,157.72,6.3403]
[1721278148024,49.4,157.76,157.73,45.46829334]
[1721278148224,12.35,157.74,157.73,45.46829334]
[1721278148619,12.35,157.74,157.72,45.0]
[1721278148938,6.3384,157.77,157.73,0.46831176]
[1721278149124,12.35,157.74,157.73,0.46831176]
[1721278150930,15.6931,157.79,157.73,0.46839039]
[1721278151134,12.35,157.75,157.74,6.80706777]
[1721278151450,12.35,157.75,157.74,51.80706777]
[1721278151654,12.35,157.76,157.74,51.80706777]
[1721278151858,12.35,157.76,157.75,45.0]
[1721278154359,12.35,157.76,157.74,45.0]
[1721278154541,18.6891,157.75,157.7,7.163704]
[1721278154754,12.35,157.71,157.7,0.822604]
[1721278157335,12.35,157.71,157.7,45.822604]
[1721278158744,14.08824486,157.75,157.7,45.822604]
[1721278159079,12.35,157.71,157.7,7.163704]
[1721278159249,12.35,157.71,157.7,52.163704]
[1721278160362,12.35,157.71,157.7,45.822604]
[1721278160566,12.35,157.71,157.7,7.163704]
[1721278160763,12.35,157.71,157.7,52.163704]
[1721278161070,12.35,157.71,157.7,45.822604]
[1721278164472,12.35,157.71,157.7,0.822604]
[1721278165267,1.58511862,157.75,157.7,0.822604]
[1721278165473,12.35,157.72,157.71,0.468674]
[1721278165853,12.35,157.72,157.71,6.809374]
[1721278166060,12.35,157.72,157.71,51.809374]
[1721278166375,12.35,157.72,157.71,45.0]
[1721278166686,12.35,157.72,157.7,52.63241215]
[1721278166982,12.35,157.71,157.7,52.163604]
[1721278169572,12.35,157.72,157.71,6.3406]
[1721278169759,12.35,157.72,157.71,51.3406]
[1721278170256,12.35,157.72,157.71,45.0]
[1721278170463,12.35,157.72,157.7,0.822604]
[1721278170786,12.35,157.71,157.7,0.822604]
[1721278173773,1.58516955,157.73,157.7,0.822604]
[1721278174083,12.35,157.71,157.7,0.822604]
[1721278175968,6.3406,157.72,157.7,0.822604]
[1721278176290,1.58510645,157.73,157.7,0.822604]
[1721278176468,12.35,157.71,157.7,0.822604]
[1721278177378,6.1325,157.74,157.7,0.822604]
[1721278177581,12.35,157.71,157.7,0.822604]
[1721278177961,7.9243533,157.75,157.7,7.163704]
[1721278178161,12.35,157.71,157.7,7.163704]
[1721278178380,12.35,157.71,157.7,52.163704]
[1721278179557,1.58500558,157.76,157.72,6.3401]
[1721278179753,15.506,157.77,157.73,51.80820615]
[1721278179978,15.506,157.77,157.74,0.46806437]
[1721278180185,12.35,157.75,157.74,0.46806437]
[1721278180680,1.58476256,157.82,157.74,6.80746437]
[1721278180681,12.35,157.76,157.74,6.80746437]
[1721278180890,12.35,157.77,157.75,45.0]
[1721278181381,12.35,157.76,157.75,45.0]
[1721278181971,16.6031,157.81,157.76,15.8468]
[1721278182180,12.35,157.79,157.77,45.0]
[1721278182387,12.35,157.79,157.77,51.3382]
[1721278182593,12.35,157.79,157.77,45.0]
[1721278183269,12.35,157.79,157.77,51.3382]
[1721278183583,12.35,157.79,157.77,45.0]
[1721278184372,12.35,157.78,157.77,45.0]
[1721278186284,18.6879,157.78,157.72,15.85]
[1721278186493,12.35,157.75,157.73,6.3396]
[1721278186994,12.35,157.75,157.74,6.3395]
[1721278187478,12.35,157.76,157.74,6.3395]
[1721278187787,12.35,157.76,157.75,45.0]
[1721278190478,12.35,157.76,157.73,6.3397]
[1721278190479,12.35,157.76,157.74,45.0]
[1721278190673,12.35,157.75,157.74,45.0]
[1721278191596,12.35,157.75,157.74,51.3395]
[1721278191892,12.35,157.76,157.74,45.0]
[1721278192089,12.35,157.76,157.73,51.3395]
[1721278192493,12.35,157.76,157.74,6.3395]
[1721278192698,12.35,157.76,157.75,45.0]
[1721278192876,12.35,157.77,157.75,45.0]
[1721278193070,65.2388,157.84,157.8,6.3369]
[1721278193071,1.58449871,157.84,157.8,6.3369]
[1721278193397,12.35,157.82,157.81,45.0]
[1721278193773,12.35,157.82,157.8,45.0]
[1721278193975,12.35,157.81,157.8,45.46663626]
[1721278194196,12.35,157.81,157.8,45.0]
[1721278196886,12.35,157.81,157.79,45.0]
[1721278197805,12.35,157.81,157.8,0.466757]
[1721278198201,12.35,157.82,157.8,0.466757]
[1721278199096,15.1935,157.85,157.8,0.466757]
[1721278199273,12.35,157.83,157.81,6.3367]
[1721278199587,12.35,157.83,157.82,45.46624775]
[1721278200172,12.35,157.83,157.82,45.0]
[1721278201290,6.3364,157.82,157.76,6.6786]
[1721278201487,12.35,157.8,157.77,51.3382]
[1721278201792,12.35,157.82,157.8,6.3371]
[1721278201993,12.35,157.82,157.78,16.31144251]
[1721278201994,12.35,157.82,157.81,45.0]
[1721278202303,12.35,157.82,157.8,45.0]
[1721278202473,12.35,157.83,157.79,45.0]
[1721278202973,12.35,157.83,157.8,6.3371]
[1721278203176,12.35,157.83,157.81,45.0]
[1721278203597,12.35,157.83,157.81,45.4663448]
[1721278204108,12.35,157.83,157.81,0.4663448]
[1721278204405,12.35,157.83,157.8,45.0]
[1721278204900,22.92294969,157.9,157.81,10.46630221]
[1721278205081,12.35,157.86,157.83,6.3355]
[1721278205392,12.35,157.86,157.84,45.46555539]
[1721278205598,12.35,157.87,157.84,45.46555539]
[1721278205786,12.35,157.87,157.84,45.0]
[1721278206194,12.35,157.87,157.84,51.3354]
[1721278206592,22.7866,157.9,157.85,6.3351]
[1721278206593,12.35,157.88,157.85,6.3351]
[1721278206803,12.35,157.88,157.86,45.0]
[1721278207491,12.35,157.87,157.86,45.0]
[1721278207683,12.35,157.87,157.85,45.0]
[1721278208708,12.35,157.88,157.85,51.335]
[1721278209901,12.35,157.88,157.86,6.3346]
[1721278210105,12.35,157.88,157.87,45.0]
[1721278210288,12.35,157.89,157.87,45.0]
[1721278211011,12.35,157.91,157.88,0.46452765]
[1721278211510,12.35,157.9,157.87,45.0]
[1721278212713,6.3327,157.91,157.88,0.46465898]
[1721278213008,12.35,157.9,157.88,0.46465898]
[1721278213188,12.35,157.9,157.88,0.4645084]
[1721278213389,12.35,157.91,157.88,6.7984084]
[1721278213597,12.35,157.91,157.89,45.0]
[1721278214610,12.35,157.93,157.9,0.46422438]
[1721278214980,12.35,157.94,157.9,6.79712438]
[1721278215294,12.35,157.94,157.91,45.0]
[1721278215491,12.35,157.94,157.92,0.46366121]
[1721278216292,12.35,157.94,157.91,45.0]
[1721278216686,12.35,157.93,157.91,45.0]
[1721278216994,6.3307,157.96,157.91,45.0]
[1721278217194,12.35,157.93,157.91,45.0]
[1721278220003,12.35,157.91,157.9,6.333]
[1721278220202,12.35,157.92,157.9,6.333]
[1721278220501,6.3312,157.95,157.91,45.0]
[1721278220702,12.35,157.92,157.9,45.0]
[1721278220905,12.35,157.91,157.9,45.0]
[1721278221100,12.35,157.91,157.86,6.3344]
[1721278221297,12.35,157.89,157.86,6.3344]
[1721278221496,12.35,157.88,157.86,6.3344]
[1721278222385,12.35,157.88,157.87,51.3343]
[1721278222593,12.35,157.89,157.87,51.3343]
[1721278222807,6.332,157.93,157.88,6.3339]
[1721278223025,1.58313459,157.93,157.89,45.0]
[1721278223200,12.35,157.9,157.89,45.0]
[1721278224015,12.35,157.9,157.89,51.3335]
[1721278224207,1.58313459,157.93,157.89,51.3335]
[1721278224411,12.4534,157.94,157.9,0.46425818]
[1721278224631,12.35,157.91,157.9,0.46425818]
[1721278224913,12.35,157.91,157.89,51.3335]
[1721278225793,6.3311,157.95,157.89,51.3335]
[1721278226117,12.35,157.91,157.89,51.3335]
[1721278227699,7.9133947,157.97,157.9,15.8323]
[1721278228018,12.35,157.92,157.91,51.3324]
[1721278228792,1.5829947,157.97,157.92,6.3322]
[1721278229015,15.0605,157.98,157.93,45.46348153]
[1721278229220,12.35,157.97,157.95,6.331]
[1721278229400,12.35,157.97,157.96,45.0]
[1721278230398,12.35,157.97,157.95,45.46306693]
[1721278232025,12.35,157.97,157.95,45.0]
[1721278233321,12.35,157.97,157.95,51.331]
[1721278233523,7.91122671,158.01,157.96,0.46287108]
[1721278233915,12.35,157.99,157.95,51.3308]
[1721278234323,12.35,157.99,157.96,6.3306]
[1721278234525,6.3291,158.0,157.97,45.0]
[1721278234735,12.35,157.98,157.95,45.0]
[1721278235031,12.35,157.97,157.95,45.0]
[1721278235208,12.35,157.98,157.95,51.3311]
[1721278235711,12.35,157.98,157.96,6.3306]
[1721278236008,12.35,157.98,157.97,45.0]
[1721278236218,12.35,157.99,157.97,45.0]
[1721278236414,1.58252671,158.01,157.97,45.0]
[1721278236733,12.35,158.0,157.98,6.79207167]
[1721278236919,12.35,158.0,157.99,45.0]
[1721278237111,12.35,158.0,157.97,51.3302]
[1721278239536,12.35,158.0,157.97,45.0]
[1721278239701,12.35,157.99,157.97,45.0]
[1721278241611,16.4609,158.02,157.97,51.3302]
[1721278241811,12.35,157.99,157.97,51.3302]
[1721278242003,12.35,158.0,157.97,51.3302]
[1721278242834,6.3282,158.03,157.97,51.3302]
[1721278243035,12.35,158.0,157.98,0.46204838]
[1721278243231,12.35,158.01,157.98,0.46204838]
[1721278243826,6.3282,158.03,157.98,0.46204838]
[1721278244032,12.35,158.01,157.98,0.46204838]
[1721278244811,12.35,158.0,157.98,0.46204838]
[1721278245536,6.3282,158.03,157.98,0.46204838]
[1721278245736,12.35,158.0,157.98,0.46204838]
[1721278246237,12.35,158.02,157.98,6.79154838]
[1721278246440,12.35,158.01,157.99,45.0]
[1721278246622,1.58210537,158.04,157.99,45.46200574]
[1721278246820,12.35,158.01,157.99,45.46200574]
[1721278248809,6.3279,158.03,157.99,45.46200574]
[1721278249012,12.35,158.01,157.99,45.46200574]
[1721278250836,12.35,158.02,157.99,45.0]
[1721278252631,12.35,158.0,157.99,45.0]
[1721278253037,12.35,158.0,157.96,15.8259]
[1721278253209,12.35,157.97,157.96,15.8259]
[1721278254139,6.3287,158.01,157.96,22.1565]
[1721278254140,12.35,157.98,157.96,22.1565]
[1721278255030,12.35,157.98,157.97,45.0]
[1721278256343,12.35,157.98,157.94,6.3314]
[1721278256642,12.35,157.96,157.95,6.3311]
[1721278257628,12.35,157.96,157.95,51.3311]
[1721278257827,1.58252794,157.99,157.95,45.0]
[1721278258028,12.35,157.96,157.94,45.0]
[1721278258245,57.39161237,158.0,157.93,15.8296]
[1721278258421,6.3295,157.99,157.94,6.3315]
[1721278258617,12.35,157.95,157.94,6.3315]
[1721278259659,12.35,157.95,157.93,22.1614]
[1721278259951,7.91259982,157.98,157.94,45.0]
[1721278260138,12.35,157.95,157.94,45.0]
[1721278260861,7.91275228,157.98,157.94,45.0]
[1721278261152,12.35,157.95,157.94,51.3315]
[1721278261352,12.35,157.95,157.94,51.79479081]
[1721278261645,12.35,157.96,157.95,6.331]
[1721278261847,12.35,157.96,157.95,51.331]
[1721278262654,12.35,157.96,157.95,45.0]
[1721278263548,16.2636,158.01,157.96,6.3305]
[1721278263747,12.35,157.98,157.97,45.46263755]
[1721278263960,12.35,157.98,157.97,45.0]
[1721278264729,22.5923,158.01,157.96,51.79336341]
[1721278264953,12.35,157.98,157.96,51.3306]
[1721278265656,7.91141486,158.0,157.96,45.0]
[1721278265859,12.35,157.97,157.96,45.0]
[1721278267257,12.35,157.97,157.93,15.8296]
[1721278267443,12.35,157.94,157.93,15.8296]
[1721278267646,12.35,157.94,157.93,22.1615]
[1721278267952,12.35,157.94,157.93,6.3319]
[1721278268264,12.35,157.95,157.93,6.3319]
[1721278268638,12.35,157.95,157.94,45.0]
[1721278270055,12.35,157.95,157.94,51.3315]
[1721278271563,12.35,157.95,157.94,45.0]
[1721278274762,12.35,157.95,157.91,15.8309]
[1721278275064,12.35,157.92,157.88,15.8346]
[1721278275366,12.35,157.89,157.88,15.8346]
[1721278275757,12.35,157.89,157.88,22.1684]
[1721278277148,12.35,157.9,157.88,22.1684]
[1721278277645,12.35,157.9,157.89,45.0]
[1721278278361,12.35,157.9,157.89,51.3335]
[1721278278561,15.4167,157.95,157.9,6.3328]
[1721278278738,12.35,157.92,157.91,45.0]
[1721278279666,12.5175,157.97,157.91,51.3327]
[1721278279880,12.35,157.93,157.91,51.3327]
[1721278280056,12.35,157.94,157.92,6.3322]
[1721278280367,12.35,157.95,157.93,45.0]
[1721278280741,12.35,157.94,157.93,45.0]
[1721278282659,6.3303,157.97,157.93,45.0]
[1721278282851,7.91263483,157.98,157.93,51.3318]
[1721278283154,12.35,157.95,157.93,51.3318]
[1721278284878,12.35,157.96,157.94,0.46334864]
[1721278286175,12.35,157.95,157.94,0.46334864]
[1721278286564,12.35,157.95,157.93,51.3318]
[1721278286762,12.35,157.95,157.94,6.3315]
[1721278286986,12.35,157.95,157.94,51.3315]
[1721278288979,1.58260276,158.02,157.94,60.8279]
[1721278289192,15.4607,158.03,157.95,45.46259069]
[1721278289193,12.35,157.98,157.95,45.46259069]
[1721278289358,12.35,158.0,157.97,6.3303]
[1721278289681,12.35,158.0,157.98,45.0]
[1721278290486,12.35,157.99,157.98,45.0]
[1721278290784,12.35,157.99,157.97,45.0]
[1721278290986,12.35,157.98,157.97,45.0]
[1721278291784,7.91058008,158.02,157.97,45.0]
[1721278292166,15.4607,158.03,157.99,6.3292]
[1721278292372,12.35,158.0,157.99,6.3292]
[1721278292687,12.35,158.0,157.99,45.0]
[1721278297788,17.92545002,158.07,157.99,67.81204091]
[1721278298008,12.35,158.06,158.03,6.3275]
[1721278298168,12.35,158.07,158.04,6.78814131]
[1721278298494,12.35,158.08,158.05,51.7876677]
[1721278299367,12.35,158.08,158.06,0.46049951]
[1721278299568,14.34787998,158.13,158.08,6.3258]
[1721278299776,12.35,158.1,158.09,45.0]
[1721278300172,12.35,158.1,158.08,45.0]
[1721278300563,12.35,158.09,158.08,45.0]
[1721278300768,12.35,158.09,158.07,45.0]
[1721278301774,12.35,158.1,158.08,0.45995651]
[1721278303196,12.35,158.11,158.09,6.3254]
[1721278303509,12.35,158.11,158.1,45.0]
[1721278303982,12.35,158.11,158.09,45.0]
[1721278304183,12.35,158.11,158.09,51.78466174]
[1721278304927,12.35,158.11,158.09,51.3251]
[1721278305211,12.35,158.11,158.09,45.0]
[1721278306388,12.35,158.13,158.1,0.45957347]
[1721278306781,1.58105516,158.16,158.1,0.45957347]
[1721278307191,12.35,158.14,158.11,6.78361749]
[1721278307398,12.35,158.14,158.12,45.0]
[1721278307605,12.35,158.15,158.12,51.3242]
[1721278307779,12.35,158.15,158.13,6.78248627]
[1721278307981,12.35,158.15,158.14,45.0]
[1721278308590,12.35,158.15,158.09,6.3254]
[1721278308799,12.35,158.16,158.09,6.3254]
[1721278308800,1.58102025,158.14,158.1,45.0]
[1721278309108,12.35,158.11,158.1,45.0]
[1721278310092,12.35,158.11,158.09,45.0]
[1721278310504,12.35,158.1,158.09,51.3255]
[1721278310708,12.35,158.11,158.1,6.325]
[1721278310904,12.35,158.11,158.1,51.325]
[1721278311221,7.90302438,158.18,158.12,6.3239]
[1721278311514,7.90309764,158.17,158.13,45.0]
[1721278311701,12.35,158.14,158.13,45.0]
[1721278312797,12.35,158.14,158.13,51.3239]
[1721278313015,12.35,158.15,158.14,6.3234]
[1721278313196,12.35,158.15,158.14,51.3234]
[1721278314223,12.35,158.15,158.14,45.0]
[1721278315390,12.35,158.15,158.08,15.8138]
[1721278315694,1.58098062,158.15,158.08,15.8138]
[1721278315899,12.35,158.11,158.09,45.0]
[1721278316309,12.35,158.12,158.09,45.0]
[1721278317017,12.35,158.12,158.1,6.325]
[1721278317211,12.35,158.12,158.11,45.0]
[1721278318423,1.58098062,158.15,158.11,45.0]
[1721278319700,6.3236,158.14,158.11,45.0]
[1721278319899,6.3236,158.14,158.1,45.0]
[1721278320102,7.90497176,158.13,158.09,45.0]
[1721278320297,7.90497176,158.13,158.08,22.1396]
[1721278320997,1.58112672,158.12,158.08,22.1396]
[1721278321310,1.58112672,158.12,158.08,15.8138]
[1721278321511,1.58112672,158.12,158.09,45.0]
[1721278323428,7.90552672,158.12,158.08,15.8138]
[1721278323604,32.51552672,158.12,158.06,6.3266]
[1721278324712,6.3247,158.11,158.06,6.3266]
[1721278324915,7.90669234,158.1,158.04,22.1449]
[1721278325114,30.9359,158.09,158.04,15.8178]
[1721278325323,1.58184424,158.08,158.01,22.1499]
[1721278325628,7.90827034,158.07,158.02,6.3282]
[1721278326705,1.58197034,158.07,158.01,15.8216]
[1721278327037,6.3279,158.03,157.97,22.1548]
[1721278327331,1.58228306,158.02,157.97,22.1548]
[1721278327624,1.58230986,158.01,157.97,22.1548]
[1721278327926,1.58226991,158.02,157.97,22.1548]
[1721278328240,7.91056991,158.02,157.97,15.8248]
[1721278328438,1.5825409,158.01,157.94,15.8287]
[1721278328741,7.9112409,158.01,157.96,6.3305]
[1721278329023,1.5825409,158.01,157.98,6.3298]
[1721278329911,1.5825409,158.01,157.97,15.825]
[1721278331031,1.5825409,158.01,157.97,22.1551]
[1721278332316,1.58234125,158.02,157.98,51.3298]
[1721278332516,1.58226576,158.01,157.98,45.0]
[1721278332931,1.5823939,158.04,157.98,45.0]
[1721278333429,6.3279,158.03,157.98,45.0]
[1721278333729,1.58233363,158.02,157.98,45.0]
[1721278334434,1.58233321,158.01,157.98,45.0]
[1721278335228,7.91103321,158.01,157.98,45.0]
[1721278335534,7.91143985,158.0,157.98,45.0]
[1721278335718,6.3291,158.0,157.98,45.0]
[1721278337420,6.3287,158.01,157.98,45.0]
[1721278337631,1.58245291,158.0,157.98,45.0]
[1721278337810,7.91155291,158.0,157.95,6.3307]
[1721278338136,1.58252735,157.99,157.95,6.3307]
[1721278338314,1.58252735,157.99,157.96,45.0]
[1721278339619,1.58252735,157.99,157.96,51.3304]
[1721278339820,1.5825082,158.01,157.97,0.46257094]
[1721278340140,1.5825082,158.01,157.96,60.8267]
[1721278340627,1.5825082,158.01,157.97,6.3302]
[1721278340826,1.5825082,158.01,157.98,45.0]
[1721278341639,6.3283,158.02,157.98,45.0]
[1721278342235,12.33,157.99,157.98,45.0]
[1721278342737,6.3279,158.03,157.98,45.0]
[1721278342944,12.33,158.0,157.99,0.46214893]
[1721278343129,12.33,158.0,157.98,51.79179113]
[1721278343329,12.33,158.01,157.98,51.79179113]
[1721278343646,12.33,158.01,157.99,0.46217698]
[1721278344440,12.33,158.0,157.99,0.46217698]
[1721278344617,12.33,158.0,157.98,45.0]
[1721278344814,12.33,158.0,157.98,45.46229675]
[1721278348049,1.58225864,158.05,157.98,51.79209675]
[1721278348343,12.33,158.0,157.98,51.3298]
[1721278351343,12.33,158.0,157.98,45.0]
[1721278351530,12.33,157.99,157.97,45.0]
[1721278351728,12.33,157.98,157.97,45.0]
[1721278354253,6.3279,158.03,157.98,6.3299]
[1721278354453,12.33,158.0,157.99,45.0]
[1721278355059,16.1202,158.06,158.03,6.3277]
[1721278355233,12.33,158.05,158.04,45.0]
[1721278355739,13.91185081,158.05,158.01,22.1497]
[1721278355938,1.58185081,158.05,158.02,45.0]
[1721278356145,12.33,158.03,158.02,45.0]
[1721278357048,12.33,158.06,158.02,45.46157351]
[1721278357632,12.33,158.06,158.04,6.3274]
[1721278357945,12.33,158.07,158.05,45.0]
[1721278358128,12.33,158.06,158.05,45.0]
[1721278358956,7.90722223,158.09,158.05,45.0]
[1721278359551,12.33,158.06,158.05,45.0]
[1721278360048,12.33,158.06,158.04,45.0]
[1721278361650,7.90722223,158.09,158.04,51.3273]
[1721278361857,12.33,158.07,158.05,0.46049779]
[1721278362541,12.33,158.07,158.05,6.78749779]
[1721278362743,12.33,158.08,158.06,45.0]
[1721278363145,1.58151048,158.09,158.06,45.0]
[1721278363346,12.33,158.07,158.06,45.0]
[1721278363542,18.6563,158.07,158.06,45.0]
[1721278364643,12.33,158.07,158.01,15.8209]
[1721278364829,12.33,158.05,158.02,45.0]
[1721278365658,12.33,158.05,158.03,6.3277]
[1721278365854,12.33,158.06,158.04,51.3271]
[1721278366158,12.33,158.05,158.04,45.0]
[1721278366541,12.33,158.05,158.03,45.0]
[1721278367558,12.33,158.05,158.03,51.3279]
[1721278370958,1.58175928,158.07,158.0,15.8225]
[1721278371147,12.33,158.02,158.0,15.8225]
[1721278372056,12.33,158.02,158.0,22.1515]
[1721278373761,12.33,158.01,157.98,6.3295]
[1721278373960,15.1021,158.04,157.99,45.0]
[1721278374149,12.33,158.0,157.99,45.0]
[1721278375059,12.33,158.0,157.97,15.8256]
[1721278375261,12.33,157.98,157.97,15.8256]
[1721278376259,12.33,157.98,157.97,60.8256]
[1721278376855,12.33,157.98,157.97,45.0]
[1721278378774,12.8156,158.03,157.97,51.3303]
[1721278378977,12.33,157.98,157.97,51.3303]
[1721278379145,12.33,157.98,157.97,45.0]
[1721278379455,12.33,157.98,157.95,6.3307]
[1721278379664,12.33,157.96,157.93,22.1611]
[1721278379843,12.33,157.95,157.93,22.1611]
[1721278381674,1.58266679,157.97,157.94,45.0]
[1721278381879,12.33,157.95,157.94,45.0]
[1721278382369,12.33,157.95,157.94,51.3315]
[1721278382558,1.58274322,157.98,157.94,51.3315]
[1721278382758,12.33,157.95,157.94,51.3315]
[1721278383955,12.33,157.95,157.94,45.0]
[1721278385674,1.58274322,157.98,157.94,45.0]
[1721278385876,12.33,157.95,157.94,45.0]
[1721278386384,12.33,157.95,157.89,15.8328]
[1721278386588,12.33,157.9,157.89,15.8328]
[1721278386754,12.33,157.91,157.89,22.1661]
[1721278387259,12.33,157.9,157.89,22.1663]
[1721278387460,12.33,157.91,157.89,22.1663]
[1721278387787,12.33,157.9,157.89,22.1663]
[1721278387989,12.33,157.91,157.9,6.3331]
[1721278388194,12.33,157.91,157.9,51.3331]
[1721278388562,12.33,157.91,157.9,45.0]
[1721278389285,12.33,157.91,157.89,45.0]
[1721278389467,12.33,157.9,157.89,45.0]
[1721278390254,12.33,157.9,157.89,51.3335]
[1721278391380,15.7608,157.98,157.89,51.3335]
[1721278391381,1.58326487,157.96,157.92,15.83]
[1721278391685,12.33,157.96,157.93,45.46325329]
[1721278391854,12.33,157.96,157.93,45.0]
[1721278392268,12.33,157.96,157.94,6.3314]
[1721278392477,12.33,157.96,157.95,45.0]
[1721278392867,17.34348473,157.98,157.95,45.0]
[1721278393179,12.33,157.96,157.95,45.0]